fUSD/lending_fUSD_20260410
["ID","MTS","AMOUNT","RATE_DAILY","PERIOD"]
[420229105,1775822771855,-5000.01,0.00011683,2]
[420229106,1775822772085,-5000.01,0.00011683,2]
[420229107,1775822774674,-5000.01,0.00011683,2]
[420229108,1775822774841,-5000.01,0.00011683,2]
[420229109,1775822777851,-5000.01,0.00011683,2]
[420229110,1775822778077,-0.06,0.00011683,2]
[420229111,1775822778136,-4999.89,0.00011683,2]
[420229112,1775822782010,-5000.01,0.00011683,2]
[420229113,1775822782053,-5000.01,0.00011683,2]
[420229114,1775822783915,-5000.01,0.00011683,2]
[420229115,1775822784100,-5000.01,0.00011683,2]
[420229116,1775822786722,-5000.01,0.00011683,2]
[420229117,1775822786809,-5000.01,0.00011683,2]
[420229118,1775822789971,-5000.01,0.00011683,2]
[420229119,1775822790145,-5000.01,0.00011683,2]
[420229120,1775822796307,-5000.01,0.00011683,2]
[420229121,1775822796338,-5000.01,0.00011683,2]
[420229122,1775822797364,-5000.01,0.00011683,2]
[420229123,1775822797394,-5000.01,0.00011683,2]
[420229124,1775822827983,500.0,7.945e-05,2]
[420229125,1775822828045,454.070742,7.945e-05,2]
[420229126,1775822887874,362.0,7.945e-05,3]
[420229127,1775822904670,153.0,7.945e-05,3]
[420229128,1775822947914,344.0,7.945e-05,3]
[420229129,1775822954750,153.0,7.945e-05,3]
[420229130,1775823006231,161.0,7.945e-05,3]
[420229131,1775823007106,327.0,7.945e-05,3]
[420229132,1775823013616,154.0,7.945e-05,3]
[420229134,1775823032303,-46823.22078681,9.975e-05,2]
[420229135,1775823032313,-327.0,9.975e-05,3]
[420229136,1775823032323,-5533.0,0.000105,5]
[420229137,1775823032346,-250.0,0.00010972,2]
[420229138,1775823032369,-1200.0,0.00011682,2]
[420229139,1775823032379,-1010.44,0.00011683,2]
[420229140,1775823032397,-286.0,0.00011683,2]
[420229141,1775823032412,-271.632087,0.00011819,2]
[420229142,1775823032424,-150.0,0.00012003,2]
[420229143,1775823032434,-327.0,0.00012004,3]
[420229144,1775823032479,-1010.44,0.00012037,2]
[420229146,1775823032500,-380.81122194,0.0001237,2]
[420229147,1775823032542,-1010.44,0.00012391,2]
[420229148,1775823032552,-1254.0,0.00012435,2]
[420229149,1775823032575,-1198.0,0.0001246,2]
[420229150,1775823032586,-1517.0,0.00012484,2]
[420229151,1775823032596,-2000.0,0.00012538,2]
[420229152,1775823032622,-1923.58,0.00012542,2]
[420229153,1775823032631,-2479.39,0.00012542,2]
[420229154,1775823032648,-191.0,0.00012578,2]
[420229155,1775823032668,-396.0,0.00012603,2]
[420229156,1775823032677,-1010.44,0.00012745,2]
[420229157,1775823032702,-1964.0,0.00012793,2]
[420229158,1775823032713,-1500.0,0.00012808,2]
[420229159,1775823032733,-154.0,0.00012818,2]
[420229160,1775823032750,-712.0,0.00012844,2]
[420229161,1775823032759,-1680.0,0.0001285,2]
[420229162,1775823032776,-1874.0,0.00012869,2]
[420229163,1775823032804,-187.0,0.00012895,2]
[420229164,1775823032813,-1876.0,0.0001292,2]
[420229165,1775823032823,-233.0,0.00012925,2]
[420229166,1775823032841,-1829.0,0.00012946,2]
[420229167,1775823032856,-500.0,0.00013,2]
[420229168,1775823032866,-150.0,0.00013,2]
[420229169,1775823032878,-250.0,0.00013,2]
[420229170,1775823032895,-1300.93,0.00013057,2]
[420229171,1775823032905,-255.0,0.00013083,2]
[420229172,1775823032926,-1010.44,0.00013099,2]
[420229173,1775823032935,-509.0,0.000131,2]
[420229174,1775823032944,-221.13,0.00013347,2]
[420229175,1775823032953,-3240.0,0.00013425,2]
[420229176,1775823032972,-1010.44,0.00013453,2]
[420229177,1775823032982,-3384.7458,0.00013615,2]
[420229178,1775823032993,-474.8,0.00013699,2]
[420229179,1775823033009,-166.66,0.00013699,2]
[420229180,1775823033019,-200.0,0.00013699,2]
[420229181,1775823033029,-150.0,0.00013699,2]
[420229182,1775823033049,-151.0,0.00013707,2]
[420229183,1775823033060,-151.0,0.00013707,2]
[420229184,1775823033072,-151.0,0.00013707,2]
[420229185,1775823033086,-151.0,0.00013707,2]
[420229186,1775823033097,-151.0,0.00013707,2]
[420229187,1775823033117,-151.0,0.00013707,2]
[420229188,1775823033127,-151.0,0.00013707,2]
[420229189,1775823033137,-151.0,0.00013707,2]
[420229190,1775823033154,-151.0,0.00013707,2]
[420229191,1775823033169,-151.0,0.00013707,2]
[420229192,1775823033179,-151.0,0.00013707,2]
[420229193,1775823033200,-151.0,0.00013707,2]
[420229194,1775823033217,-151.0,0.00013707,2]
[420229195,1775823033228,-151.0,0.00013707,2]
[420229196,1775823033241,-151.0,0.00013707,2]
[420229197,1775823033269,-151.0,0.00013707,2]
[420229198,1775823033278,-500.0,0.00013707,2]
[420229199,1775823033290,-151.0,0.00013707,2]
[420229200,1775823033310,-500.0,0.00013707,2]
[420229201,1775823033327,-151.0,0.00013707,2]
[420229202,1775823033337,-500.0,0.00013707,2]
[420229203,1775823033359,-151.0,0.00013707,2]
[420229204,1775823033371,-500.0,0.00013707,2]
[420229205,1775823033381,-151.0,0.00013707,2]
[420229206,1775823033393,-500.0,0.00013707,2]
[420229207,1775823033415,-151.0,0.00013707,2]
[420229208,1775823033426,-500.0,0.00013707,2]
[420229209,1775823033438,-151.0,0.00013707,2]
[420229210,1775823033461,-500.0,0.00013707,2]
[420229211,1775823033470,-151.0,0.00013707,2]
[420229212,1775823033492,-500.0,0.00013707,2]
[420229213,1775823033506,-151.0,0.00013707,2]
[420229214,1775823033517,-500.0,0.00013707,2]
[420229215,1775823033543,-151.0,0.00013707,2]
[420229216,1775823033553,-500.0,0.00013707,2]
[420229217,1775823033580,-500.0,0.00013707,2]
[420229218,1775823033590,-151.0,0.00013707,2]
[420229219,1775823033599,-500.0,0.00013707,2]
[420229220,1775823033624,-500.0,0.00013707,2]
[420229221,1775823033634,-151.0,0.00013707,2]
[420229222,1775823033643,-500.0,0.00013707,2]
[420229223,1775823033666,-500.0,0.00013707,2]
[420229224,1775823033676,-151.0,0.00013707,2]
[420229225,1775823033686,-500.0,0.00013707,2]
[420229226,1775823033702,-151.0,0.00013707,2]
[420229227,1775823033711,-500.0,0.00013707,2]
[420229228,1775823033720,-500.0,0.00013707,2]
[420229229,1775823033733,-151.0,0.00013707,2]
[420229230,1775823033742,-500.0,0.00013707,2]
[420229231,1775823033762,-500.0,0.00013707,2]
[420229232,1775823033773,-151.0,0.00013707,2]
[420229233,1775823033784,-519.12657805,0.00013707,2]
[420229234,1775823033800,-500.0,0.00013707,2]
[420229235,1775823033810,-151.0,0.00013707,2]
[420229236,1775823033831,-500.0,0.00013707,2]
[420229237,1775823033846,-151.0,0.00013707,2]
[420229238,1775823033856,-500.0,0.00013707,2]
[420229239,1775823033868,-151.0,0.00013707,2]
[420229240,1775823033881,-500.0,0.00013707,2]
[420229241,1775823033894,-153.02490676,0.00013707,2]
[420229242,1775823033909,-500.0,0.00013707,2]
[420229243,1775823033922,-500.0,0.00013707,2]
[420229244,1775823033931,-500.0,0.00013707,2]
[420229245,1775823033949,-500.0,0.00013707,2]
[420229246,1775823033958,-519.11226445,0.00013707,2]
[420229247,1775823033975,-36455.24,0.00013715,2]
[420229248,1775823033985,-150.0,0.00013726,2]
[420229249,1775823034017,-1331.51,0.0001383,2]
[420229250,1775823034027,-166.66,0.00013841,2]
[420229251,1775823034043,-166.66,0.00013984,2]
[420229252,1775823034055,-260.73,0.00013999,7]
[420229253,1775823034081,-5553.0284,0.00014,2]
[420229254,1775823034106,-400.0,0.00014004,7]
[420229255,1775823034116,-400.0,0.00014008,7]
[420229256,1775823034126,-186.65,0.00014008,7]
[420229257,1775823034147,-327.0,0.00014034,3]
[420229258,1775823034166,-2000.0,0.00014105,2]
[420229259,1775823034178,-166.66,0.00014127,2]
[420229260,1775823034191,-2351.0,0.00014135,2]
[420229261,1775823034207,-151.0,0.000142,2]
[420229262,1775823034216,-153.937522,0.000142,2]
[420229263,1775823034232,-51883.9641996,0.00014247,2]
[420229264,1775823034243,-151.0,0.00014247,2]
[420229265,1775823034262,-433.0,0.0001426,2]
[420229266,1775823034275,-166.66,0.00014269,2]
[420229267,1775823034284,-174.7661,0.000143,2]
[420229268,1775823034302,-3807.14823121,0.00014407,2]
[420229269,1775823034322,-846.71047134,0.00014407,2]
[420229270,1775823034334,-166.66,0.00014412,2]
[420229271,1775823034344,-398.21,0.00014483,2]
[420229272,1775823034355,-382.48,0.00014497,2]
[420229273,1775823034374,-382.48,0.00014497,2]
[420229274,1775823034383,-382.48,0.00014497,2]
[420229275,1775823034392,-382.48,0.00014497,2]
[420229276,1775823034410,-382.48,0.00014497,2]
[420229277,1775823034421,-532.23476499,0.00014506,2]
[420229278,1775823034430,-593.52112029,0.00014506,2]
[420229279,1775823034439,-176.8123314,0.00014506,2]
[420229280,1775823034452,-241.88111831,0.00014506,2]
[420229281,1775823034465,-384.88261402,0.00014506,2]
[420229282,1775823034475,-500.0,0.00014506,2]
[420229283,1775823034485,-500.0,0.00014506,2]
[420229284,1775823034496,-384.61440893,0.00014506,2]
[420229285,1775823034510,-155.59115507,0.00014506,2]
[420229286,1775823034519,-500.0,0.00014506,2]
[420229287,1775823034529,-500.0,0.00014506,2]
[420229288,1775823034541,-500.0,0.00014506,2]
[420229289,1775823034557,-500.0,0.00014506,2]
[420229290,1775823034568,-500.0,0.00014506,2]
[420229291,1775823034578,-500.0,0.00014506,2]
[420229292,1775823034592,-500.0,0.00014506,2]
[420229293,1775823034605,-500.0,0.00014506,2]
[420229294,1775823034616,-500.0,0.00014506,2]
[420229295,1775823034630,-500.0,0.00014506,2]
[420229296,1775823034648,-500.0,0.00014506,2]
[420229297,1775823034659,-42453.19550128,0.00014507,2]
[420229298,1775823035579,-107546.80449872,0.00014507,2]
[420229299,1775823035592,-150000.0,0.00014507,2]
[420229300,1775823035606,-95706.46196387,0.00014507,2]
[420229301,1775823035624,-54293.53803613,0.00014507,2]
[420229302,1775823035635,-12152.54121992,0.00014507,2]
[420229303,1775823035653,-32838.43788643,0.00014507,2]
[420229304,1775823038494,-320.10886877,0.00014507,2]
[420229307,1775823043513,-449.83802742,0.00014185,2]
[420229308,1775823043530,-10458.83647684,0.00014507,2]
[420229309,1775823043542,-35455.5081259,0.00014507,2]
[420229310,1775823043551,-151.0,0.00014507,2]
[420229311,1775823043576,-151.0,0.00014507,2]
[420229312,1775823043595,-151.0,0.00014507,2]
[420229313,1775823043604,-221.92,0.00014518,7]
[420229314,1775823043613,-388.36,0.00014522,7]
[420229315,1775823043623,-400.0,0.00014526,7]
[420229316,1775823043639,-500.0,0.00014573,2]
[420229317,1775823043649,-500.0,0.00014573,2]
[420229318,1775823043662,-500.0,0.00014573,2]
[420229319,1775823043674,-500.0,0.00014573,2]
[420229320,1775823043686,-209.52918559,0.00014573,2]
[420229321,1775823043705,-531.1,0.00014573,2]
[420229322,1775823043731,-3807.14823116,0.00014573,2]
[420229323,1775823043744,-846.71047127,0.0001462,2]
[420229324,1775823043753,-1000.0,0.00014661,2]
[420229325,1775823043769,-160.0,0.0001469,2]
[420229326,1775823043786,-161.542417,0.0001469,2]
[420229327,1775823043795,-163.084835,0.0001469,2]
[420229328,1775823043809,-160.0,0.0001469,7]
[420229329,1775823043826,-410.994646,0.0001469,7]
[420229330,1775823043838,-661.989293,0.0001469,7]
[420229331,1775823043850,-160.0,0.0001469,2]
[420229332,1775823043860,-295.507646,0.0001469,2]
[420229333,1775823043877,-431.015293,0.0001469,2]
[420229334,1775823043887,-160.0,0.0001469,7]
[420229335,1775823043898,-1197.238672,0.0001469,7]
[420229336,1775823043916,-2234.477345,0.0001469,7]
[420229337,1775823043926,-700.0,0.00014696,2]
[420229338,1775823043937,-160.0,0.000147,7]
[420229339,1775823043950,-990.96363,0.000147,7]
[420229340,1775823043965,-1821.92726,0.000147,7]
[420229341,1775823043975,-3807.14823116,0.00014739,2]
[420229342,1775823043985,-500.0,0.00014761,2]
[420229343,1775823044005,-500.0,0.00014761,2]
[420229344,1775823044015,-215.39830433,0.00014761,2]
[420229345,1775823044031,-500.0,0.00014761,2]
[420229346,1775823044540,-500.0,0.00014761,2]
[420229347,1775823044580,-500.0,0.00014761,2]
[420229348,1775823044591,-500.0,0.00014761,2]
[420229349,1775823044607,-500.0,0.00014761,2]
[420229350,1775823044631,-500.0,0.00014761,2]
[420229351,1775823044641,-500.21368198,0.00014773,2]
[420229352,1775823044650,-576.8557094,0.00014773,2]
[420229353,1775823044665,-846.71047127,0.00014834,2]
[420229354,1775823044682,-168.0,0.00014895,2]
[420229355,1775823044691,-1390.42886195,0.00014896,2]
[420229356,1775823044701,-2000.0,0.000149,5]
[420229357,1775823044728,-3807.14823116,0.00014905,2]
[420229358,1775823044738,-175.0002056,0.00014942,2]
[420229359,1775823044751,-1031.6799209,0.00014942,2]
[420229360,1775823044766,-1770.96079,0.00014942,2]
[420229361,1775823044776,-151.0,0.00014944,2]
[420229362,1775823044785,-156.51,0.00014946,7]
[420229363,1775823044804,-228.87,0.00014946,7]
[420229364,1775823044819,-500.0,0.00014947,2]
[420229365,1775823044829,-500.0,0.00014947,2]
[420229366,1775823044844,-500.0,0.00014947,2]
[420229367,1775823044854,-270.74155764,0.00014947,2]
[420229368,1775823044868,-151.0,0.00014947,2]
[420229369,1775823044881,-273.9,0.00014951,7]
[420229370,1775823044891,-400.0,0.00014951,7]
[420229371,1775823044903,-150.0,0.00014954,2]
[420229372,1775823044915,-150.0,0.00014954,2]
[420229373,1775823044925,-150.0,0.00014954,2]
[420229374,1775823044935,-293.49073325,0.00014954,2]
[420229375,1775823044952,-500.0,0.00014954,2]
[420229376,1775823044962,-500.0,0.00014954,2]
[420229377,1775823044973,-500.0,0.00014954,2]
[420229378,1775823044988,-500.0,0.00014954,2]
[420229379,1775823045002,-500.0,0.00014954,2]
[420229380,1775823045014,-500.0,0.00014954,2]
[420229381,1775823045026,-500.0,0.00014954,2]
[420229382,1775823045041,-500.0,0.00014954,2]
[420229383,1775823045052,-500.0,0.00014954,2]
[420229384,1775823045062,-500.0,0.00014954,2]
[420229385,1775823045087,-500.0,0.00014954,2]
[420229386,1775823045097,-500.0,0.00014954,2]
[420229387,1775823045119,-500.0,0.00014954,2]
[420229388,1775823045131,-500.0,0.00014954,2]
[420229389,1775823045149,-151.78459476,0.00014954,2]
[420229390,1775823045171,-500.0,0.00014954,2]
[420229391,1775823045186,-500.0,0.00014954,2]
[420229392,1775823045196,-500.0,0.00014954,2]
[420229393,1775823045220,-500.0,0.00014954,2]
[420229394,1775823045230,-500.0,0.00014954,2]
[420229395,1775823045246,-500.0,0.00014954,2]
[420229396,1775823045260,-500.0,0.00014954,2]
[420229397,1775823045272,-298.0,0.00014954,2]
[420229398,1775823045281,-1602.0,0.00014954,2]
[420229399,1775823045317,-150.0,0.00014954,2]
[420229400,1775823045326,-150.0,0.00014954,2]
[420229401,1775823045339,-209.41061782,0.00014954,2]
[420229402,1775823045359,-184.51547503,0.00014954,2]
[420229403,1775823045370,-352.16,0.00014955,7]
[420229404,1775823045380,-400.0,0.00014955,7]
[420229405,1775823045393,-40577.17382425,0.0001499,2]
[420229406,1775823045417,-4041.73251132,0.00014996,2]
[420229407,1775823045437,-3006.6825235,0.00015,2]
[420229408,1775823045447,-300.0,0.00015,2]
[420229409,1775823045456,-713.01,0.00015,2]
[420229410,1775823045476,-160.0,0.00015,2]
[420229411,1775823045486,-846.71047127,0.00015047,2]
[420229412,1775823045497,-3807.14823116,0.00015071,2]
[420229413,1775823045520,-168.0,0.00015082,2]
[420229414,1775823045546,-671.93182394,0.00015121,2]
[420229415,1775823045559,-1000.0,0.00015121,2]
[420229416,1775823045575,-1000.0,0.00015121,2]
[420229417,1775823045585,-1000.0,0.00015121,2]
[420229418,1775823045596,-168.0,0.00015124,2]
[420229419,1775823045610,-250.0,0.00015184,2]
[420229420,1775823045633,-4000.0,0.000152,5]
[420229421,1775823045646,-398.21,0.00015207,2]
[420229422,1775823045659,-3807.14823116,0.00015236,2]
[420229423,1775823045673,-168.0,0.00015241,2]
[420229424,1775823045682,-846.71047127,0.0001526,2]
[420229425,1775823045704,-308.54,0.00015269,7]
[420229426,1775823045717,-6000.0,0.000153,5]
[420229427,1775823045730,-286.26522124,0.0001532,2]
[420229428,1775823045742,-162.0,0.0001536,2]
[420229429,1775823045764,-5000.0,0.00015376,2]
[420229430,1775823045774,-816.60456841,0.00015376,2]
[420229431,1775823045784,-516.0,0.00015388,2]
[420229432,1775823045799,-1390.42886195,0.00015398,2]
[420229433,1775823045812,-150.0225071,0.000154,7]
[420229434,1775823045822,-8100.0,0.000154,5]
[420229435,1775823045836,-3807.14823116,0.00015402,2]
[420229436,1775823045858,-220.285115,0.00015425,2]
[420229437,1775823045868,-560.447245,0.00015425,7]
[420229438,1775823045884,-402.964973,0.00015425,2]
[420229439,1775823045900,-1632.59819,0.00015425,7]
[420229440,1775823045910,-1148.723,0.00015426,2]
[420229441,1775823045926,-162.987,0.00015426,2]
[420229443,1775823045939,-1351.31404,0.00015435,7]
[420229444,1775823045958,-153.83,0.00015447,2]
[420229445,1775823045968,-816.60456838,0.00015463,2]
[420229446,1775823045978,-1386.0,0.00015466,2]
[420229447,1775823045995,-623.88,0.00015471,2]
[420229448,1775823046006,-846.71047127,0.00015473,2]
[420229450,1775823046023,-918.0,0.00015476,2]
[420229452,1775823046040,-231.0,0.00015476,2]
[420229454,1775823046050,-1704.0,0.00015476,2]
[420229455,1775823046066,-7057.0,0.00015476,2]
[420229457,1775823046081,-10870.0,0.00015476,2]
[420229460,1775823046106,-865.0,0.00015476,2]
[420229462,1775823046115,-1251.0,0.00015476,2]
[420229463,1775823046128,-5003.0,0.00015476,2]
[420229464,1775823046142,-1518.0,0.00015476,2]
[420229465,1775823046152,-1696.0,0.00015476,2]
[420229466,1775823046162,-509.0,0.00015489,4]
[420229467,1775823046179,-1600.0,0.00015495,2]
[420229468,1775823046190,-203.6212,0.000155,2]
[420229469,1775823046199,-10100.0,0.000155,5]
[420229470,1775823046217,-3028.33,0.00015507,2]
[420229471,1775823046228,-500.0,0.00015507,2]
[420229472,1775823046243,-516.0,0.00015534,2]
[420229473,1775823046253,-435.0,0.00015544,2]
[420229474,1775823046270,-176.39,0.00015545,2]
[420229475,1775823046294,-3292.0,0.00015548,2]
[420229476,1775823046307,-816.60456838,0.00015551,2]
[420229477,1775823046323,-3807.14823116,0.00015568,2]
[420229478,1775823046333,-788.07,0.00015569,2]
[420229479,1775823046353,-622.0,0.00015576,2]
[420229480,1775823046370,-1047.0,0.00015576,2]
[420229481,1775823046384,-1347.0,0.00015576,2]
[420229482,1775823046407,-313.0,0.000156,2]
[420229483,1775823046420,-2000.0,0.000156,5]
[420229484,1775823046440,-306.0,0.000156,2]
[420229485,1775823046461,-816.60456838,0.00015638,2]
[420229486,1775823046476,-516.0,0.00015641,2]
[420229487,1775823046496,-221.13,0.00015644,2]
[420229488,1775823046513,-161.0,0.00015657,3]
[420229489,1775823046527,-1500.0,0.00015668,2]
[420229490,1775823046547,-150.83840523,0.00015668,2]
[420229491,1775823046565,-2000.0,0.00015672,2]
[420229492,1775823046584,-241.0108657,0.0001568,2]
[420229493,1775823046609,-846.71047127,0.00015687,2]
[420229494,1775823046623,-500.0,0.00015699,2]
[420229495,1775823046649,-500.0,0.00015699,2]
[420229496,1775823046659,-500.0,0.00015699,2]
[420229497,1775823046675,-15729.19880037,0.000157,2]
[420229498,1775823046705,-2000.0,0.000157,5]
[420229499,1775823046717,-816.60456838,0.00015725,2]
[420229500,1775823046727,-3807.14823116,0.00015734,2]
[420229501,1775823046745,-496.0,0.00015736,2]
[420229502,1775823046766,-410.3229734,0.00015741,2]
[420229503,1775823046776,-211.06,0.00015753,2]
[420229504,1775823046787,-423.0,0.00015764,2]
[420229505,1775823046797,-516.0,0.00015765,2]
[420229506,1775823046810,-153.81944985,0.00015789,2]
[420229507,1775823046820,-519.0,0.00015796,2]
[420229508,1775823046830,-1000.0,0.000158,2]
[420229509,1775823046842,-2000.0,0.000158,5]
[420229510,1775823046854,-816.60456838,0.00015813,2]
[420229511,1775823046864,-986.22,0.00015828,2]
[420229512,1775823046873,-1000.0,0.00015838,2]
[420229513,1775823046889,-1000.0,0.00015838,2]
[420229514,1775823046902,-423.0,0.00015849,2]
[420229515,1775823046912,-2000.0,0.0001589,2]
[420229516,1775823046925,-366.0,0.00015893,2]
[420229517,1775823046935,-168.0,0.00015894,2]
[420229518,1775823046950,-3028.33,0.00015895,2]
[420229519,1775823046960,-786.906504,0.000159,2]
[420229520,1775823046973,-193.61265601,0.000159,3]
[420229521,1775823046987,-816.60456838,0.000159,2]
[420229522,1775823046997,-2000.0,0.000159,5]
[420229523,1775823047007,-3807.14823116,0.000159,2]
[420229524,1775823047017,-1390.42886195,0.000159,2]
[420229525,1775823047032,-846.71047127,0.000159,2]
[420229526,1775823047041,-370.12386351,0.000159,2]
[420229527,1775823047051,-9775.3792882,0.000159,2]
[420229528,1775823047061,-10158.803593,0.000159,2]
[420229529,1775823047076,-715.89742388,0.000159,2]
[420229530,1775823047086,-218.90360635,0.00015907,2]
[420229531,1775823047097,-398.21,0.00015931,2]
[420229532,1775823047107,-153.83,0.00015943,2]
[420229533,1775823047121,-165.6,0.00015948,2]
[420229534,1775823047131,-852.36,0.00015958,2]
[420229535,1775823047144,-20000.0,0.00015973,2]
[420229536,1775823047155,-500.0,0.00015973,2]
[420229537,1775823047166,-204.63067592,0.00015973,2]
[420229538,1775823047177,-500.0,0.00015973,2]
[420229539,1775823047186,-500.0,0.00015973,2]
[420229540,1775823047198,-500.0,0.00015973,2]
[420229541,1775823047209,-500.0,0.00015973,2]
[420229542,1775823047218,-500.0,0.00015973,2]
[420229543,1775823047228,-500.0,0.00015973,2]
[420229544,1775823047241,-500.0,0.00015973,2]
[420229545,1775823047252,-500.0,0.00015973,2]
[420229546,1775823047261,-500.0,0.00015973,2]
[420229547,1775823047271,-500.0,0.00015973,2]
[420229548,1775823047290,-500.0,0.00015973,2]
[420229549,1775823047311,-500.0,0.00015973,2]
[420229550,1775823047320,-500.0,0.00015973,2]
[420229551,1775823047330,-500.0,0.00015973,2]
[420229552,1775823047341,-500.0,0.00015973,2]
[420229553,1775823047351,-501.92382274,0.00015973,2]
[420229554,1775823047362,-500.0,0.00015973,2]
[420229555,1775823047371,-500.0,0.00015973,2]
[420229556,1775823047385,-500.0,0.00015973,2]
[420229557,1775823047395,-348.41274049,0.00015973,2]
[420229558,1775823047407,-500.0,0.00015973,2]
[420229559,1775823047434,-500.0,0.00015973,2]
[420229560,1775823047443,-325.72004297,0.00015973,2]
[420229561,1775823047458,-500.0,0.00015973,2]
[420229562,1775823047471,-500.0,0.00015973,2]
[420229563,1775823047482,-204.54296283,0.00015984,2]
[420229564,1775823047498,-161.61617763,0.00015984,2]
[420229565,1775823047509,-423.0,0.00015984,2]
[420229566,1775823047522,-572.28521995,0.0001599,2]
[420229567,1775823047531,-572.28521995,0.0001599,2]
[420229568,1775823047546,-572.28521995,0.0001599,2]
[420229569,1775823047555,-500.0,0.00015999,2]
[420229570,1775823047571,-500.0,0.00015999,2]
[420229571,1775823047601,-500.0,0.00015999,2]
[420229572,1775823047611,-500.0,0.00015999,2]
[420229573,1775823047630,-500.0,0.00015999,2]
[420229574,1775823047658,-216.72574047,0.00015999,2]
[420229575,1775823047670,-500.0,0.00015999,2]
[420229576,1775823047685,-500.0,0.00015999,2]
[420229577,1775823047695,-396.4808442,0.00015999,2]
[420229578,1775823047711,-500.0,0.00015999,2]
[420229579,1775823047723,-500.0,0.00015999,2]
[420229580,1775823047739,-500.0,0.00015999,2]
[420229581,1775823047760,-500.0,0.00015999,2]
[420229582,1775823047772,-500.0,0.00015999,2]
[420229583,1775823047798,-500.0,0.00015999,2]
[420229584,1775823047815,-500.0,0.00015999,2]
[420229585,1775823047834,-500.0,0.00015999,2]
[420229586,1775823047852,-500.0,0.00015999,2]
[420229587,1775823047861,-258.60706313,0.00015999,2]
[420229588,1775823047871,-500.0,0.00015999,2]
[420229589,1775823047887,-500.0,0.00015999,2]
[420229590,1775823047909,-500.0,0.00015999,2]
[420229591,1775823047918,-500.0,0.00015999,2]
[420229592,1775823047931,-500.0,0.00015999,2]
[420229593,1775823047949,-390.52318915,0.00015999,2]
[420229594,1775823047960,-702295.67682126,0.00016,2]
[420229596,1775823049315,-11010.84065919,0.00016,2]
[420229597,1775823049578,-160.0,0.0001469,7]
[420229598,1775823049595,-150.546,0.0001469,7]
[420229600,1775824019186,-155.32384705,0.00011581,2]
[420229608,1775824232427,-1200.0,0.00011581,2]
[420229609,1775824232443,-2305.9222,0.00011583,2]
[420229610,1775824232456,-108.15304516,0.00011583,2]
[420229611,1775824232582,-176.27684333,0.00011583,2]
[420229612,1775824232595,-284.42988849,0.00011583,2]
[420229613,1775824232610,-274.23767586,0.00011966,2]
[420229614,1775824232626,-315.34478143,0.00011966,2]
[420229615,1775824232636,-284.42988849,0.00012244,2]
[420229616,1775824232649,-250.0,0.00012739,2]
[420229617,1775824232660,-44.99693008,0.00012739,2]
[420229618,1775824232704,-205.00306992,0.00012739,2]
[420229619,1775824232717,-1680.0,0.0001274,2]
[420229620,1775824232729,-611.9024778,0.00012905,2]
[420229621,1775824232740,-151.0,0.00012919,2]
[420229622,1775824232752,-151.0,0.00012936,2]
[420229623,1775824232764,-159.52,0.0001297,2]
[420229624,1775824232777,-6.37599735,0.00013,2]
[420229625,1775824232789,-143.62400265,0.00013,2]